Cogmind - Beta 9.5 @@@ ROGUE MODE // 2020.04.06 @ 11:26:07 Player: Barleymor Result: Destroyed by S-10 Pest with Light Assault Rifle Performance ------------- Evolutions (1) 500 Regions Visited (3) 600 Robots Destroyed (29) 145 Value Destroyed (925) 925 Prototype IDs (0) 0 Alien Tech Used (0) 0 Bonus (0) 0 TOTAL SCORE: 2170 Bonus ------- None Cogmind --------- Core Integrity 0/400 Matter 286/300 Energy 215/265 System Corruption 0% Temperature Cool (88) Movement Walking (150) Ox1 Location -9/Storage Parts ------- > --- POWER (1) -------- Improved Ion Engine > --- PROPULSION (3) --- Aluminum Leg Carbon-fiber Leg > --- UTILITY (3) ------ Large Storage Unit Light Armor Plating > --- WEAPON (2) ------- Light EM Pulse Cannon Heavy Assault Rifle > --- INVENTORY (10) --- Improved Ion Engine Improved Ion Engine Light Treads Aluminum Leg Medium Armor Plating Medium Armor Plating Medium Armor Plating Light EM Pulse Cannon Heavy Assault Rifle Peak State ------------ > --- POWER ------------ Light Ion Engine > --- PROPULSION ------- Carbon-fiber Leg Carbon-fiber Leg Carbon-fiber Leg > --- UTILITY ---------- Improved Heat Sink Small Storage Unit Terrain Scanner > --- WEAPON ----------- Assault Rifle Light Assault Rifle > --- INVENTORY -------- Light Ion Engine Aluminum Leg Aluminum Leg Light Assault Rifle Light Assault Rifle Grenade Launcher [Rating: 17] Favorites ----------- Power Improved Ion Engine Engine Improved Ion Engine Propulsion Aluminum Leg Leg Aluminum Leg Utility Large Storage Unit Device Heat Sink Storage Large Storage Unit Protection Light Armor Plating Weapon Light Assault Rifle Energy Gun Medium Laser Energy Cannon Light EM Pulse Cannon Ballistic Gun Light Assault Rifle Launcher Grenade Launcher Build | -11 -10 -9 -9 ------- Run | Scr Mat Mat Sto Slots Evolved 2 | . . 2 . Power . | . . . . Propulsion 1 | . . 1 . Utility 1 | . . 1 . Weapon . | . . . . Parts Attached 39 | 6 4 18 11 Power 6 | 1 1 2 2 Engine 6 | 1 1 2 2 Core . | . . . . Reactor . | . . . . Propulsion 10 | 2 1 6 1 Treads . | . . . . Leg 10 | 2 1 6 1 Wheel . | . . . . Hover . | . . . . Flight . | . . . . Utility 12 | 1 1 5 5 Device 5 | . 1 2 2 Storage 3 | 1 . 2 . Processor . | . . . . Hackware . | . . . . Protection 4 | . . 1 3 Artifact . | . . . . Weapon 11 | 2 1 5 3 Energy Gun 2 | 1 . . 1 Energy Cannon 1 | . . . 1 Ballistic Gun 7 | 1 1 4 1 Ballistic Cannon . | . . . . Launcher 1 | . . 1 . Special Weapon . | . . . . Impact Weapon . | . . . . Slashing Weapon . | . . . . Piercing Weapon . | . . . . Special Melee Weapon . | . . . . Unidentified Prototypes . | . . . . Parts Lost 22 | . 1 12 9 Power 3 | . . 2 1 Propulsion 5 | . . 3 2 Utility 5 | . . 2 3 Weapon 9 | . 1 5 3 Highest Loss Streak 12 | . 1 12 6 Average Slot Usage (%) 94 | . 98 88 97 Engine 10 | . 14 9 9 Leg 30 | . 28 29 32 Device 12 | . 12 13 10 Storage 11 | . 14 11 11 Protection 5 | . . 4 11 Energy Gun 1 | . 6 . . Energy Cannon 2 | . . . 8 Ballistic Gun 18 | . 22 20 13 Naked Turns . | . . . . Heaviest Build 34 | 13 14 31 34 Greatest Support 45 | 20 20 45 35 Greatest Overweight (x) 1 | 1 . . . Average Overweight (x) . | . . . . Largest Inventory Capacity 10 | 6 6 10 10 Average Capacity 8 | 4 6 9 10 Most Carried 10 | 4 6 10 10 Average Carried 6 | 1 4 6 8 Final Capacity 10 | 6 6 10 10 Final Carried 10 | 2 6 10 9 Class Distribution -------------------- 59% | Mutant 40% | Scavenger-Mutant Dominant Class ---------------- Mutant | -10/Materials Mutant | -9/Materials Scavenger-Mutant | -9/Storage Resources | -11 -10 -9 -9 ----------- Run | Scr Mat Mat Sto Matter Collected 861 | 260 112 235 254 Remotely . | . . . . Salvage Created 1136 | . 253 342 541 Parts 82 | . 21 20 41 Haulers Intercepted . | . . . . Recyclers Shooed . | . . . . Parts Field Recycled . | . . . . Retrieved Matter . | . . . . Parts Self-Destructed . | . . . . Prevented . | . . . . Kills | -11 -10 -9 -9 ------- Run | Scr Mat Mat Sto Combat Hostiles Destroyed 26 | . 8 7 11 Guns 20 | . 8 6 6 Cannons 5 | . . . 5 AOE 1 | . . 1 . Classes Destroyed 6 | . 4 2 . Recycler 1 | . 1 . . Watcher 2 | . 1 1 . Swarmer 7 | . 6 . 1 Grunt 5 | . 2 1 2 Duelist 2 | . . 1 1 Sentry 12 | . . 5 7 Best Kill Streak 5 | . 5 4 3 Combat Bots Only 4 | . 3 4 3 Max Kills in Single Turn 2 | . 1 2 1 Gunslinging 1 | . . 1 . Exploded 1 | . . 1 . Melee . | . . . . Uniques/NPCs Destroyed . | . . . . Combat | -11 -10 -9 -9 -------- Run | Scr Mat Mat Sto Damage Taken 2326 | . 303 1178 845 Core 464 | . 62 238 164 Absorbed by Shields . | . . . . Core Remaining (%) 87 | 100 75 . . Volleys Fired 107 | . 25 38 44 Largest 2 | . 2 2 2 Hottest 79 | . 70 50 79 Shots Fired 186 | . 49 64 73 Gun 163 | . 49 61 53 Cannon 20 | . . . 20 Launcher 3 | . . 3 . Special . | . . . . Kinetic 151 | . 42 61 48 Thermal 12 | . 7 . 5 Explosive 3 | . . 3 . Electromagnetic 20 | . . . 20 Robot Hit Streak 13 | . 5 10 13 Robot Miss Streak 3 | . 3 2 3 Penetration Max . | . . . . Secondary Targets 1 | . . 1 . Max Gunslinging Chain 1 | . . 1 . Shots Hit Robots 131 | . 26 51 54 Core Hits 53 | . 14 19 20 Critical Hits . | . . . . Critical Kills . | . . . . Critical Parts Destroyed . | . . . . Melee Attacks . | . . . . Impact . | . . . . Slashing . | . . . . Piercing . | . . . . Sneak Attacks . | . . . . Combat Hostiles . | . . . . Follow-up Attacks . | . . . . Damage Inflicted 1803 | . 330 617 856 Guns 1430 | . 330 530 570 Cannons 286 | . . . 286 Explosions 87 | . . 87 . Melee . | . . . . Ramming . | . . . . Kinetic 1283 | . 256 530 497 Thermal 147 | . 74 . 73 Explosive 87 | . . 87 . Electromagnetic 286 | . . . 286 Impact . | . . . . Slashing . | . . . . Piercing . | . . . . Highest Corruption . | . . . . Average Corruption . | . . . . Corruption Purged . | . . . . Overload Shots . | . . . . Overflow Damage 33 | . . 33 . Projectiles . | . . . . Explosions 33 | . . 33 . Melee . | . . . . Knockbacks . | . . . . Impact . | . . . . Kinetic . | . . . . Secondary . | . . . . Self-Inflicted Damage 109 | . . 109 . Shots 3 | . . 3 . Rammed . | . . . . Targets Rammed . | . . . . Kicked . | . . . . Crushed . | . . . . Highest Temperature 88 | . 81 4 88 Average Temperature 23 | . 29 2 22 Received Heat Transfer 477 | . 54 219 204 Siege Activations . | . . . . Robots Corrupted . | . . . . Combat Hostiles . | . . . . Parts Fried 3 | . . . 3 Impact Corruptions . | . . . . Robots Melted . | . . . . Combat Hostiles . | . . . . Parts Melted . | . . . . Heat Transferred 407 | . 222 . 185 Parts Sabotaged . | . . . . Parts Stolen . | . . . . Parts Stripped . | . . . . Power Chain Reactions . | . . . . Missiles Intercepted . | . . . . Alert | -11 -10 -9 -9 ------- Run | Scr Mat Mat Sto Peak Influence 266 | . 222 250 266 Average Influence 117 | . 91 161 105 Maximum Alert Level 1 | . 1 1 1 Low Security (%) 79 | 100 91 56 91 Level 1 20 | . 8 43 8 Level 2 . | . . . . Level 3 . | . . . . Level 4 . | . . . . Level 5 . | . . . . High Security . | . . . . Max Security . | . . . . Squads Dispatched 4 | . . . 4 Investigation . | . . . . Extermination . | . . . . Reinforcement 1 | . . . 1 Assault . | . . . . Garrison 3 | . . . 3 Intercept . | . . . . Construction Impeded . | . . . . Haulers Reinforced . | . . . . Stealth | -11 -10 -9 -9 --------- Run | Scr Mat Mat Sto Distress Signals 5 | . 1 1 3 Communications Jammed . | . . . . Distress Signals . | . . . . Times Spotted 40 | . 13 10 17 Peak Tracking Total 7 | . 5 6 7 Tactical Retreats 2 | . 1 . 1 Traps | -11 -10 -9 -9 ------- Run | Scr Mat Mat Sto Traps Triggered 1 | . . . 1 Indirectly . | . . . . Trap Hack Attempts . | . . . . Triggered . | . . . . Disarmed . | . . . . Reprogrammed . | . . . . Reused . | . . . . Traps Extracted . | . . . . Installed . | . . . . Triggered . | . . . . Machines | -11 -10 -9 -9 ---------- Run | Scr Mat Mat Sto Machines Disabled . | . . . . Max in Single Turn . | . . . . Machines Sabotaged . | . . . . Garrisons Compromised . | . . . . Overloaded Fab Kills . | . . . . Fab Network Shutdowns . | . . . . Hacking | -11 -10 -9 -9 --------- Run | Scr Mat Mat Sto Machines Accessed 1 | . 1 . . Terminals . | . . . . Fabricators . | . . . . Repair Stations . | . . . . Recycling Units 1 | . 1 . . Scanalyzers . | . . . . Garrison Access . | . . . . Total Hacks 1 | . 1 . . Successful 1 | . 1 . . Failed . | . . . . Catastrophic . | . . . . Database Lockouts . | . . . . Manual . | . . . . Terminals . | . . . . Fabricators . | . . . . Repair Stations . | . . . . Recycling Units 1 | . 1 . . Scanalyzers . | . . . . Garrison Access . | . . . . Terminal Hacks . | . . . . Fabricator Hacks . | . . . . Repair Station Hacks . | . . . . Recycling Unit Hacks 1 | . 1 . . Report Inventory 1 | . 1 . . Scanalyzer . | . . . . Garrison Access Hacks . | . . . . Unauthorized Hacks . | . . . . Terminals . | . . . . Fabricators . | . . . . Repair Stations . | . . . . Recycling Units . | . . . . Scanalyzers . | . . . . Garrison Access . | . . . . Data Cores Recovered . | . . . . Used . | . . . . Hacking Detections . | . . . . Full Trace Events . | . . . . Feedback Events . | . . . . Feedback Blocked . | . . . . Robot Schematics Acquired . | . . . . Robots Built . | . . . . Matter . | . . . . Time . | . . . . Total Robot Build Rating . | . . . . Part Schematics Acquired . | . . . . Parts Built . | . . . . Matter . | . . . . Time . | . . . . Total Part Build Rating . | . . . . Parts Repaired . | . . . . Time . | . . . . Parts Recycled . | . . . . Recycled Matter . | . . . . Retrieved Matter . | . . . . Retrieved Components . | . . . . Parts Scanalyzed . | . . . . Part Schematics Acquired . | . . . . Parts Damaged . | . . . . Bothacking | -11 -10 -9 -9 ------------ Run | Scr Mat Mat Sto Used RIF Installer . | . . . . Robots Hacked . | . . . . Non-combat . | . . . . Combat . | . . . . Robot Hacks Applied . | . . . . Relay Couplers Released . | . . . . Robots Rewired . | . . . . Allies Hacked . | . . . . Hacks Repelled . | . . . . Allies | -11 -10 -9 -9 -------- Run | Scr Mat Mat Sto Total Allies . | . . . . Largest Group . | . . . . Highest-Rated Group . | . . . . Highest-Rated Ally . | . . . . Total Orders . | . . . . Ally Attacks . | . . . . Total Damage . | . . . . Kills . | . . . . Allies Corrupted . | . . . . Allies Melted . | . . . . Intel | -11 -10 -9 -9 ------- Run | Scr Mat Mat Sto Robot Analysis Total . | . . . . Derelict Logs Recovered . | . . . . Drone Launches . | . . . . Drone Recoveries . | . . . . Exploration | -11 -10 -9 -9 ------------- Run | Scr Mat Mat Sto Turns Passed 1247 | 48 344 454 401 Spaces Moved 649 | 30 186 243 190 Core 4 | 4 . . . Treads . | . . . . Legs 645 | 26 186 243 190 Wheels . | . . . . Hover . | . . . . Flight . | . . . . Fastest Speed 50 | 50 120 120 120 Average Speed 119 | 115 120 120 120 Slowest Speed 150 | 150 120 120 120 Overloaded Moves . | . . . . Propulsion Burnouts . | . . . . Robots Hopped . | . . . . Cave-ins Triggered . | . . . . Exploration Rate (%) 23 | 5 30 20 40 Regions Visited 3 Branch Regions 1 Pre-discovered Areas . | . . . . Known Exits Taken . | . . . . Unknown Exits Taken 3 | 1 1 1 . Scrap Searched . | . . . . Spaces Dug . | . . . . Terrain Destroyed 12 | . . 12 . Melee . | . . . . Projectile . | . . . . AOE 12 | . . 12 . Actions | -11 -10 -9 -9 --------- Run | Scr Mat Mat Sto Total 945 | 43 261 347 294 Wait 90 | . 38 22 30 Move 646 | 29 185 242 190 Hop . | . . . . Pick Up 48 | 8 7 21 12 Fast Attach 2 | . . 2 . Attach 29 | 6 2 13 8 Detach . | . . . . Swap 8 | . 2 3 3 Drop 15 | . 2 6 7 Fire 107 | . 25 38 44 Melee . | . . . . Ram . | . . . . Kick . | . . . . Crush . | . . . . Escape Stasis . | . . . . Rewire . | . . . . Trap . | . . . . Miscellaneous . | . . . . Route ------- -11/Scrapyard -10/Materials -9/Materials (discovered 2 exits: [*Min] / *Sto) -9/Storage History --------- Turn | Location | Event 13 | -11/Scrapyard | Discovered new exit (range 16) 49 | -11/Scrapyard | Entered Materials 182 | -10/Materials | Discovered new exit (range 16) 313 | -10/Materials | Build established: Mutant 393 | -10/Materials | Entered another Materials area 393 | -9/Materials | Evolved 2 slots: Propulsion x1, Utility x1 640 | -9/Materials | Core integrity fell below 50% 658 | -9/Materials | Lost 12 parts (2p3n2u5w) 808 | -9/Materials | Discovered new exit (range 11) 809 | -9/Materials | Discovered new exit (range 6) 847 | -9/Materials | Entered Storage 935 | -9/Storage | Garrison activated, responded to threat 979 | -9/Storage | Lost 6 parts (1p2u3w) 1060 | -9/Storage | Core integrity fell below 20% 1248 | -9/Storage | Destroyed by S-10 Pest with Light Assault Rifle Last Messages --------------- 01213_ Y-45 Defender destroyed. 01213_ K-01 Serf collects debris. 01216_ Acquired 6 matter. 01218_ K-01 Serf collects debris. 01224_ O-16 Technician sends out distress signal. 01225_ O-16 Technician uses terminal to summon reinforcements. 01225_ ALERT: Hostiles spotted, dispatching reinforcements to Terminal S004. 01225_ O-16 Technician locks terminal. 01225_ Y-45 Defender misfires. 01234_ K-01 Serf cleans the Component Storage. 01234_ S-10 Pest destroyed. 01238_ Heat Sink destroyed. 01238_ K-01 Serf cleans the Component Storage. 01239_ K-01 Serf collects debris. 01243_ Heat Sink fried. 01243_ Y-45 Defender destroyed. 01245_ R-06 Scavenger collects Flight Unit. 01246_ Aluminum Leg destroyed. 01247_ K-01 Serf cleans the Component Storage. Map ----- +----------------------------------------------------+ | ?????????????????????????????????????????????????? | | ?????????????????????????????????????????????????? | | ?????????????????????????????????????????????????? | | ?????????????????????????????????????????????????? | | ?????????????????????????????????????????????????? | | ?????????????????????????????????????????????????? | | ?????????????????????????????????????????????????? | | ?????????????????????????????????????????????????? | | ?????????????????????????????????????????????????? | | ?????????????????????????????????????????????????? | | ?????????????????????????????????????????????????? | | ?????????????????????????????????????????????????? | | ?????????????????????????????????????????????????? | | ?????????????????????????????????????????????????? | | ?????????????????????????????????????????????????? | | ?????????????????????????????????????????????????? | | ?????????????????????????????????????????????????? | | ?????????????????????????????????????????????????? | | ??????????????????#??????????????????????????????? | | ??????????????????# ?????????????????????????????? | | ?????????????????## ??????????????##????????????? | | ?????????????????# ########## ###??????????? | | ?????????????????# %![ ???????? | | ?????????????????# T =*%[ ???????? | | ?????????????????# ###s###### #????????????? | | ?????????????????#####??#@#??????????????????????? | | ????????????????????????# #??????????????????????? | | ???????????????????????##r#######????????????????? | | ???????????????????????# #????????????????? | | ???????????????????????# """"" #????????????????? | | ???????????????????????# """"" #????????????????? | | ???????????????????????# """"" #????????????????? | | ???????????????????????#a ##???????????????? | | ???????????????????????#k""""" #???????????????? | | ???????????????????????#u""""" ##???????????????? | | ???????????????????????#k""""" #????????????????? | | ???????????????????????# * #????????????????? | | ??????????????????????######/#########+#### ?????? | | ??????????????????????# =% ^^ ????? | | ??????????????????????# ????? | | ????????????????###???#!!% ^ ????? | | ????????????????# "???#!! """ #### ?????? | | ????????????????#"G"??#!! ! """ ""#???????? | | ???????????????##" "### """ T"#???????? | | ???????????????# #=! ! ""#???????? | | ???????????????#""" #% ##????????? | | ???????????????#""" %+! #?????????? | | ???????????????#""" # #"T"####/##+# #?????????? | | ???????????????# # ###### # #?????????? | | ???????????????# # #????# + #?????????? | +----------------------------------------------------+ Best States ------------- Heat Dissipation 42 Energy Generation 12 Energy Capacity 265 Matter Stores 300 Matter Capacity 300 Sight Range 16 Terrain Scan Range 14 Terrain Scan Density 10 Armor Coverage 150 Core Shielding 20 Evasion (%) 40 Item Schematics ----------------- None Robot Schematics ------------------ None Fabricated ------------ Nothing Alien Tech Used ----------------- None Achievements -------------- None Challenges ------------ None Game ------ Seed NovaCoreTerrabomb Manual? 0 Play Time 00:22:25 Cumulative 6.2 hours Start 2020.04.06 @ 11:04:31 End 2020.04.06 @ 11:26:07 Sessions 1 Manual Loads 0 Difficulty Rogue Special Mode None Game No. 4 Rogue 4 Adventurer 0 Explorer 0 Win Type - Total 0 Types 0/0/0/0/0/0/0 Lore% 2 Gallery% 10 Achievement% 9 Wizard Run 0 Options --------- ASCII 0 Keyboard 0 Movement Numpad Keybinds 0 Fullscreen 1 Font 20/SmallcapsGlow Map View 66x50 Tactical HUD 1 Map Filters NONE Filters NONE Steam 1 RUN: e03e91c0-941f-45e9-9537-f9338a2d8161